[Event "1.Frauenbundesliga 2018-19"]
[Site "Germany"]
[Date "2018.10.27"]
[Round "1"]
[White "Zpevakova, Jana"]
[Black "Zahn, Alina"]
[Result "0-1"]
[ECO "D61"]
[WhiteElo "2056"]
[BlackElo "2096"]
[Annotator "NA RC"]
[PlyCount "120"]
[EventDate "2018.10.27"]
[EventType "team-tourn"]
[EventCountry "GER"]
[SourceTitle "playchess.com"]
[Source "ChessBase"]
[SourceQuality "1"]
[WhiteTeam "SK Schwäbisch Hall"]
[BlackTeam "Hamburger SK"]
[TimeControl "40/5400+30:1800+30"]

1. d4 {[%emt 0:00:00]} d5 {[%emt 0:00:00]} 2. c4 {[%emt 0:00:00]} e6 {[%emt 0:00:00]} 3. Nf3 {[%emt 0:00:00]} Nf6 {[%emt 0:00:00]} 4. Nc3 {[%emt 0:01:31]} Be7 {[%emt 0:00:34]} 5. Bg5 {[%emt 0:01:02]} O-O {[%emt 0:02:55]} 6. e3 {[%emt 0:01:24]} Nbd7 {[%emt 0:00:10]} 7. Qc2 {[%emt 0:02:36]} dxc4 {[%emt 0:04:10]} 8. Bxc4 {[%emt 0:03:04]} a6 {[%emt 0:00:16]} 9. Bd3 {[%emt 0:09:58]} b6 {[%emt 0:05:19]} 10. Ne5 {[%emt 0:06:17]} h6 {[%emt 0:03:39]} 11. Nc6 {[%emt 0:04:03]} Qe8 {[%emt 0:00:44]} 12. Nxe7+ {[%emt 0:04:06]} Qxe7 {[%emt 0:00:12]} 13. Bh4 {[%emt 0:04:54]} Bb7 {[%emt 0:01:07]} 14. O-O {[%emt 0:07:13]} c5 {[%emt 0:05:30]} 15. Rad1 {[%emt 0:03:43]} Rac8 {[%emt 0:06:52]} 16. Qe2 {[%emt 0:02:01]} b5 {[%emt 0:18:32]} 17. Bb1 {[%emt 0:03:54]} cxd4 {[%emt 0:14:49]} 18. exd4 {[%emt 0:01:59]} Qd6 {[%emt 0:06:24]} 19. Rfe1 {[%emt 0:04:02]} Rc4 {[%emt 0:03:08]} 20. Bg3 {[%emt 0:05:22]} Qb6 {[%emt 0:02:14]} 21. f3 {[%emt 0:03:38]} g6 {[%emt 0:11:57]} 22. Bf4 {[%emt 0:06:53]} Kg7 {[%emt 0:04:14]} 23. Qf2 {[%emt 0:01:43]} Rd8 {[%emt 0:02:37]} 24. Be3 {[%emt 0:06:13]} Bd5 {[%emt 0:00:55]} 25. Ne4 {[%emt 0:01:32]} Bxe4 {[%emt 0:01:14]} 26. fxe4 {[%emt 0:05:20]} Ng4 {[%emt 0:00:13]} 27. Qf3 {[%emt 0:03:11]} Nxe3 {[%emt 0:00:07]} 28. Qxe3 {[%emt 0:00:12]} Nf6 {[%emt 0:00:23]} 29. d5 {[%emt 0:04:14]} Qxe3+ {[%emt 0:00:41]} 30. Rxe3 {[%emt 0:00:03]} exd5 {[%emt 0:00:20]} 31. exd5 {[%emt 0:01:16]} Rxd5 {[%emt 0:00:35]} 32. Rf1 {[%emt 0:00:54]} Rc7 {[%emt 0:00:55]} 33. Ref3 {[%emt 0:01:42]} Ng4 {[%emt 0:00:20]} 34. h3 {[%emt 0:00:33]} Ne5 {[%emt 0:00:05]} 35. R3f2 {[%emt 0:00:14]} Rdd7 {[%emt 0:00:39]} 36. Kh2 {[%emt 0:01:10]} Nc4 {[%emt 0:00:38]} 37. b3 {[%emt 0:00:48]} Nd2 {[%emt 0:01:39]} 38. Re1 {[%emt 0:00:18]} Nxb1 {[%emt 0:00:18]} 39. Rxb1 {[%emt 0:00:06]} Rd6 {[%emt 0:00:20]} 40. Re1 {[%emt 0:01:12]} Rcd7 {[%emt 0:00:45]} 41. Ree2 {[%emt 0:30:57]} h5 {[%emt 0:32:12]} 42. Re4 {[%emt 0:00:00]} Kh6 {[%emt 0:00:00]} 43. Rc2 {[%emt 0:00:00]} f5 {[%emt 0:00:00]} 44. Re8 {[%emt 0:00:00]} h4 {[%emt 0:00:00]} 45. Kg1 {[%emt 0:00:00]} Kg5 {[%emt 0:00:00]} 46. Kf2 {[%emt 0:00:00]} Rd2+ {[%emt 0:00:00]} 47. Re2 {[%emt 0:00:00]} Rxc2 {[%emt 0:00:00]} 48. Rxc2 {[%emt 0:00:00]} Kf4 {[%emt 0:00:00]} 49. Re2 {[%emt 0:00:00]} g5 {[%emt 0:00:00]} 50. Rc2 {[%emt 0:00:00]} g4 {[%emt 0:00:00]} 51. hxg4 {[%emt 0:00:00]} fxg4 {[%emt 0:00:00]} 52. a4 {[%emt 0:02:49]} Rd3 {[%emt 0:02:48]} 53. Rc6 {[%emt 0:00:52]} Rxb3 {[%emt 0:01:30]} 54. Rf6+ {[%emt 0:00:34]} Kg5 {[%emt 0:00:15]} 55. Rxa6 {[%emt 0:00:03]} Rb2+ {[%emt 0:01:37]} 56. Kf1 {[%emt 0:01:27]} Kf4 {[%emt 0:01:12]} 57. axb5 {[%emt 0:00:41]} Kg3 {[%emt 0:01:01]} 58. Ra3+ {[%emt 0:02:10]} Kh2 {[%emt 0:00:06]} 59. Ra4 {[%emt 0:00:22]} h3 {[%emt 0:00:50]} 60. gxh3 {[%emt 0:00:45]} g3 {[%emt 0:00:18]} 0-1

[Event "1.Frauenbundesliga 2018-19"]
[Site "Germany"]
[Date "2018.10.27"]
[Round "1"]
[White "Valkova, Angelika"]
[Black "Marx, Inga"]
[Result "1-0"]
[ECO "D64"]
[WhiteElo "1918"]
[BlackElo "1863"]
[Annotator "NA RC"]
[PlyCount "119"]
[EventDate "2018.10.27"]
[EventType "team-tourn"]
[EventCountry "GER"]
[SourceTitle "playchess.com"]
[Source "ChessBase"]
[SourceQuality "1"]
[WhiteTeam "SF Deizisau"]
[BlackTeam "Tura Harksheise"]
[TimeControl "40/5400+30:1800+30"]

1. d4 {[%emt 0:00:00]} d5 {[%emt 0:00:00]} 2. c4 {[%emt 0:00:00]} e6 {[%emt 0:00:00]} 3. Nc3 {[%emt 0:00:00]} Nf6 {[%emt 0:00:00]} 4. Nf3 {[%emt 0:00:00]} Nbd7 {[%emt 0:00:04]} 5. Bg5 {[%emt 0:00:04]} Be7 {[%emt 0:00:10]} 6. e3 {[%emt 0:00:11]} O-O {[%emt 0:00:24]} 7. Rc1 {[%emt 0:01:05]} c6 {[%emt 0:01:10]} 8. Qc2 {[%emt 0:00:09]} Re8 {[%emt 0:01:31]} 9. a3 {[%emt 0:00:43]} a5 {[%emt 0:02:48]} 10. Bd3 {[%emt 0:05:25]} Nf8 {[%emt 0:04:09]} 11. O-O {[%emt 0:10:03]} Nh5 {[%emt 0:06:14]} 12. Bxe7 {[%emt 0:00:37]} Qxe7 {[%emt 0:00:08]} 13. c5 {[%emt 0:06:51]} g6 {[%emt 0:06:01]} 14. Rfe1 {[%emt 0:09:54]} f5 {[%emt 0:10:24]} 15. Ne5 {[%emt 0:06:11]} Qf6 {[%emt 0:10:47]} 16. b4 {[%emt 0:11:21]} axb4 {[%emt 0:03:49]} 17. axb4 {[%emt 0:01:21]} Nd7 {[%emt 0:01:30]} 18. f4 {[%emt 0:00:11]} g5 {[%emt 0:13:33]} 19. g4 {[%emt 0:12:22]} Ng7 {[%emt 0:06:07]} 20. Kh1 {[%emt 0:07:06]} Rf8 {[%emt 0:09:16]} 21. Rg1 {[%emt 0:02:33]} gxf4 {[%emt 0:03:21]} 22. g5 {[%emt 0:00:42]} Qe7 {[%emt 0:01:01]} 23. Nxd7 {[%emt 0:00:13]} Bxd7 {[%emt 0:00:32]} 24. exf4 {[%emt 0:00:04]} Be8 {[%emt 0:01:15]} 25. Ra1 {[%emt 0:04:44]} Bh5 {[%emt 0:02:45]} 26. Be2 {[%emt 0:04:46]} Qc7 {[%emt 0:00:47]} 27. Qd2 {[%emt 0:00:51]} Kh8 {[%emt 0:02:13]} 28. Rgf1 {[%emt 0:03:17]} Rfb8 {[%emt 0:02:06]} 29. Ra2 {[%emt 0:05:24]} b5 {[%emt 0:02:31]} 30. Rfa1 {[%emt 0:01:01]} Rxa2 {[%emt 0:01:05]} 31. Rxa2 {[%emt 0:00:07]} Bxe2 {[%emt 0:02:15]} 32. Nxe2 {[%emt 0:00:04]} Kg8 {[%emt 0:01:53]} 33. Nc1 {[%emt 0:01:07]} Rb7 {[%emt 0:01:20]} 34. Ra8+ {[%emt 0:04:59]} Rb8 {[%emt 0:00:24]} 35. Ra5 {[%emt 0:00:10]} Rb7 {[%emt 0:01:20]} 36. Nd3 {[%emt 0:00:16]} Nh5 {[%emt 0:01:10]} 37. Ne5 {[%emt 0:01:39]} Qc8 {[%emt 0:02:00]} 38. Kg2 {[%emt 0:01:04]} Rc7 {[%emt 0:01:25]} 39. Kf3 {[%emt 0:00:08]} Qe8 {[%emt 0:00:43]} 40. Qa2 {[%emt 0:00:28]} Rc8 {[%emt 0:01:17]} 41. Ra6 {[%emt 0:31:50]} Ng7 {[%emt 0:02:42]} 42. Ke3 {[%emt 0:00:00]} Kf8 {[%emt 0:04:30]} 43. Ra7 {[%emt 0:00:00]} Kg8 {[%emt 0:06:17]} 44. Nd7 {[%emt 0:00:00]} Nh5 {[%emt 0:04:35]} 45. Rb7 {[%emt 0:00:00]} Ra8 {[%emt 0:01:01]} 46. Qxa8 {[%emt 0:00:00]} Qxa8 {[%emt 0:00:09]} 47. Rb8+ {[%emt 0:00:00]} Qxb8 {[%emt 0:00:07]} 48. Nxb8 {[%emt 0:00:00]} Ng7 {[%emt 0:02:02]} 49. Nxc6 {[%emt 0:00:00]} Ne8 {[%emt 0:00:07]} 50. h4 {[%emt 0:00:00]} Kg7 {[%emt 0:02:47]} 51. h5 {[%emt 0:00:00]} Nc7 {[%emt 0:00:30]} 52. Kd3 {[%emt 0:00:00]} h6 {[%emt 0:02:19]} 53. g6 {[%emt 0:00:00]} Kf8 {[%emt 0:01:26]} 54. Kc3 {[%emt 0:00:00]} Kg7 {[%emt 0:00:32]} 55. Kb3 {[%emt 0:00:00]} Kf8 {[%emt 0:00:38]} 56. Na7 {[%emt 0:00:00]} Kg7 {[%emt 0:00:17]} 57. c6 {[%emt 0:00:00]} e5 {[%emt 0:06:39]} 58. dxe5 {[%emt 0:00:00]} Kf8 {[%emt 0:00:21]} 59. Kc3 {[%emt 0:00:00]} Ke7 {[%emt 0:01:07]} 60. Kd4 {[%emt 0:00:00]} 1-0

[Event "1.Frauenbundesliga 2018-19"]
[Site "Germany"]
[Date "2018.10.28"]
[Round "2"]
[White "Zahn, Alina"]
[Black "Valkova, Angelika"]
[Result "1-0"]
[ECO "C00"]
[WhiteElo "2096"]
[BlackElo "1918"]
[Annotator "NA RC"]
[PlyCount "75"]
[EventDate "2018.10.27"]
[EventType "team-tourn"]
[EventCountry "GER"]
[SourceTitle "playchess.com"]
[Source "ChessBase"]
[SourceQuality "1"]
[WhiteTeam "Hamburger SK"]
[BlackTeam "SF Deizisau"]
[TimeControl "40/5400+30:1800+30"]

1. e4 {[%emt 0:00:00]} e6 {[%emt 0:00:00]} 2. d4 {[%emt 0:00:00]} d5 {[%emt 0:00:00]} 3. Bd3 {[%emt 0:00:00]} Nf6 {[%emt 0:00:00]} 4. e5 {[%emt 0:00:00]} Nfd7 {[%emt 0:00:00]} 5. f4 {[%emt 0:00:18]} c5 {[%emt 0:00:06]} 6. c3 {[%emt 0:00:09]} Nc6 {[%emt 0:00:24]} 7. Nf3 {[%emt 0:00:10]} cxd4 {[%emt 0:01:08]} 8. cxd4 {[%emt 0:00:15]} f6 {[%emt 0:06:32]} 9. O-O {[%emt 0:05:24]} Be7 {[%emt 0:04:03]} 10. Ng5 {[%emt 0:20:32]} Nf8 {[%emt 0:04:19]} 11. Qh5+ {[%emt 0:07:51]} Kd7 {[%emt 0:16:27]} 12. Nf3 {[%emt 0:05:25]} g6 {[%emt 0:09:24]} 13. Qh3 {[%emt 0:00:14]} Qb6 {[%emt 0:04:26]} 14. Kh1 {[%emt 0:12:44]} f5 {[%emt 0:18:37]} 15. Rd1 {[%emt 0:06:26]} Kd8 {[%emt 0:03:47]} 16. Nc3 {[%emt 0:09:28]} Bd7 {[%emt 0:01:18]} 17. Rb1 {[%emt 0:01:10]} Rc8 {[%emt 0:05:19]} 18. Be3 {[%emt 0:00:17]} Na5 {[%emt 0:00:52]} 19. Bf2 {[%emt 0:02:16]} Ke8 {[%emt 0:02:41]} 20. Bh4 {[%emt 0:05:19]} Qd8 {[%emt 0:01:00]} 21. g4 {[%emt 0:07:19]} Nc4 {[%emt 0:04:32]} 22. gxf5 {[%emt 0:04:15]} gxf5 {[%emt 0:00:06]} 23. Rg1 {[%emt 0:00:58]} Ng6 {[%emt 0:03:17]} 24. Bxe7 {[%emt 0:01:45]} Kxe7 {[%emt 0:00:04]} 25. Qg3 {[%emt 0:05:25]} Rg8 {[%emt 0:06:26]} 26. Ng5 {[%emt 0:00:28]} h6 {[%emt 0:00:45]} 27. Nh7 {[%emt 0:00:53]} Nd2 {[%emt 0:02:40]} 28. Rbd1 {[%emt 0:01:09]} Ne4 {[%emt 0:00:08]} 29. Bxe4 {[%emt 0:00:17]} dxe4 {[%emt 0:00:51]} 30. Nf6 {[%emt 0:00:11]} Rg7 {[%emt 0:00:05]} 31. Qh3 {[%emt 0:00:56]} Qh8 {[%emt 0:01:23]} 32. Qe3 {[%emt 0:01:02]} Nh4 {[%emt 0:01:15]} 33. Rxg7+ {[%emt 0:01:15]} Qxg7 {[%emt 0:00:04]} 34. Rg1 {[%emt 0:00:10]} Qf7 {[%emt 0:00:37]} 35. d5 {[%emt 0:00:27]} exd5 {[%emt 0:01:11]} 36. Ncxd5+ {[%emt 0:00:11]} Ke6 {[%emt 0:00:43]} 37. Qb3 {[%emt 0:00:47]} Rd8 {[%emt 0:02:13]} 38. Nc7+ {[%emt 0:00:36]} 1-0

[Event "1.Frauenbundesliga 2018-19"]
[Site "Germany"]
[Date "2018.10.28"]
[Round "2"]
[White "Marx, Inga"]
[Black "Zpevakova, Jana"]
[Result "0-1"]
[ECO "B10"]
[WhiteElo "1863"]
[BlackElo "2056"]
[Annotator "NA RC"]
[PlyCount "80"]
[EventDate "2018.10.27"]
[EventType "team-tourn"]
[EventCountry "GER"]
[SourceTitle "playchess.com"]
[Source "ChessBase"]
[SourceQuality "1"]
[WhiteTeam "Tura Harksheise"]
[BlackTeam "SK Schwäbisch Hall"]
[TimeControl "40/5400+30:1800+30"]

1. e4 {[%emt 0:00:00]} c6 {[%emt 0:00:00]} 2. Nf3 {[%emt 0:00:00]} d5 {[%emt 0:00:00]} 3. exd5 {[%emt 0:00:00]} cxd5 {[%emt 0:00:00]} 4. Ne5 {[%emt 0:00:02]} Nc6 {[%emt 0:00:39]} 5. Bb5 {[%emt 0:00:25]} Bd7 {[%emt 0:01:13]} 6. Nxd7 {[%emt 0:01:08]} Qxd7 {[%emt 0:00:16]} 7. d4 {[%emt 0:00:39]} Nf6 {[%emt 0:04:18]} 8. c3 {[%emt 0:00:53]} e6 {[%emt 0:01:56]} 9. Nd2 {[%emt 0:01:27]} Bd6 {[%emt 0:04:05]} 10. O-O {[%emt 0:00:52]} a6 {[%emt 0:03:31]} 11. Bd3 {[%emt 0:00:58]} O-O {[%emt 0:03:29]} 12. f4 {[%emt 0:18:49]} Qc7 {[%emt 0:05:19]} 13. Qe1 {[%emt 0:05:55]} g6 {[%emt 0:12:39]} 14. Nf3 {[%emt 0:06:30]} Nh5 {[%emt 0:12:26]} 15. Ne5 {[%emt 0:05:01]} Ng7 {[%emt 0:02:26]} 16. Ng4 {[%emt 0:07:02]} f6 {[%emt 0:02:33]} 17. Nh6+ {[%emt 0:14:27]} Kh8 {[%emt 0:00:41]} 18. Qh4 {[%emt 0:02:57]} Nf5 {[%emt 0:03:46]} 19. Nxf5 {[%emt 0:02:15]} exf5 {[%emt 0:00:39]} 20. Re1 {[%emt 0:03:11]} Kg7 {[%emt 0:02:52]} 21. Bd2 {[%emt 0:03:22]} Rae8 {[%emt 0:01:52]} 22. Qf2 {[%emt 0:02:26]} Qd7 {[%emt 0:09:12]} 23. Qf3 {[%emt 0:01:31]} Bc7 {[%emt 0:00:37]} 24. Bc2 {[%emt 0:02:09]} Na5 {[%emt 0:03:37]} 25. b3 {[%emt 0:02:23]} b5 {[%emt 0:03:10]} 26. Rxe8 {[%emt 0:01:02]} Rxe8 {[%emt 0:00:14]} 27. Re1 {[%emt 0:00:23]} Rxe1+ {[%emt 0:02:33]} 28. Bxe1 {[%emt 0:00:06]} Qe6 {[%emt 0:00:51]} 29. Kf1 {[%emt 0:02:04]} Kf7 {[%emt 0:03:04]} 30. g3 {[%emt 0:01:44]} Qc6 {[%emt 0:03:37]} 31. h4 {[%emt 0:03:20]} Nb7 {[%emt 0:02:22]} 32. g4 {[%emt 0:03:33]} fxg4 33. Qxg4 {[%emt 0:00:06]} f5 {[%emt 0:04:02]} 34. Qf3 {[%emt 0:01:10]} Nd6 {[%emt 0:00:24]} 35. h5 {[%emt 0:02:50]} Ne4 {[%emt 0:01:00]} 36. hxg6+ {[%emt 0:00:50]} hxg6 {[%emt 0:01:04]} 37. Ke2 {[%emt 0:02:22]} Qd6 {[%emt 0:03:31]} 38. Bd2 {[%emt 0:02:22]} Qa3 {[%emt 0:02:26]} 39. Bb1 {[%emt 0:02:28]} Qb2 {[%emt 0:00:33]} 40. Qd3 {[%emt 0:00:41]} Bxf4 {[%emt 0:00:28]} 0-1

[Event "1.Frauenbundesliga 2018-19"]
[Site "Germany"]
[Date "2019.01.12"]
[Round "5"]
[White "Majdan, Joanna"]
[Black "Mar, Karmen"]
[Result "1-0"]
[ECO "B98"]
[WhiteElo "2386"]
[BlackElo "2063"]
[Annotator "NA"]
[PlyCount "57"]
[EventDate "2018.10.27"]
[EventType "team-tourn"]
[EventCountry "GER"]
[SourceTitle "playchess.com"]
[Source "ChessBase"]
[SourceQuality "1"]
[TimeControl "40/5400+30:1800+30"]

1. e4 {[%emt 0:00:00]} c5 {[%emt 0:00:00]} 2. Nf3 {[%emt 0:00:00]} d6 {[%emt 0:00:00]} 3. d4 {[%emt 0:00:00]} cxd4 {[%emt 0:00:00]} 4. Nxd4 {[%emt 0:00:00]} Nf6 {[%emt 0:00:05]} 5. Nc3 {[%emt 0:00:04]} a6 {[%emt 0:00:24]} 6. Bg5 {[%emt 0:01:58]} e6 {[%emt 0:01:18]} 7. f4 {[%emt 0:00:31]} Be7 {[%emt 0:01:13]} 8. Qf3 {[%emt 0:00:43]} Qc7 {[%emt 0:08:58]} 9. O-O-O {[%emt 0:01:07]} Nc6 {[%emt 0:05:06]} 10. Nxc6 {[%emt 0:07:04]} Qxc6 {[%emt 0:13:08]} 11. Bd3 {[%emt 0:05:38]} O-O {[%emt 0:23:21]} 12. Kb1 {[%emt 0:09:45]} Re8 {[%emt 0:03:39]} 13. Qh3 {[%emt 0:07:25]} e5 {[%emt 0:20:50]} 14. f5 {[%emt 0:00:24]} b5 {[%emt 0:00:35]} 15. g4 {[%emt 0:06:15]} b4 {[%emt 0:01:54]} 16. Nd5 {[%emt 0:00:05]} Qb7 {[%emt 0:03:52]} 17. Bxf6 {[%emt 0:00:36]} Bxf6 {[%emt 0:00:10]} 18. Nxf6+ {[%emt 0:03:25]} gxf6 {[%emt 0:00:02]} 19. Qh6 {[%emt 0:00:05]} Qe7 {[%emt 0:01:37]} 20. Rhg1 {[%emt 0:00:18]} Qf8 {[%emt 0:05:02]} 21. Qxf6 {[%emt 0:00:06]} Qe7 {[%emt 0:00:15]} 22. Qh6 {[%emt 0:03:02]} Qf8 {[%emt 0:00:40]} 23. Qh4 {[%emt 0:00:43]} Qg7 {[%emt 0:02:12]} 24. g5 {[%emt 0:00:06]} Kh8 {[%emt 0:02:15]} 25. Bc4 {[%emt 0:00:53]} Bb7 {[%emt 0:03:14]} 26. Rxd6 {[%emt 0:00:09]} Rad8 {[%emt 0:00:57]} 27. Rh6 {[%emt 0:01:00]} Rd7 {[%emt 0:01:34]} 28. f6 {[%emt 0:00:22]} Qg8 {[%emt 0:00:41]} 29. g6 {[%emt 0:00:10]} 1-0

[Event "1.Frauenbundesliga 2018-19"]
[Site "Germany"]
[Date "2019.01.12"]
[Round "5"]
[White "Movsesian, Julia"]
[Black "Kushka, Alena"]
[Result "1-0"]
[ECO "B30"]
[WhiteElo "2305"]
[BlackElo "2165"]
[Annotator "NA"]
[PlyCount "55"]
[EventDate "2018.10.27"]
[EventType "team-tourn"]
[EventCountry "GER"]
[SourceTitle "playchess.com"]
[Source "ChessBase"]
[SourceQuality "1"]
[TimeControl "40/5400+30:1800+30"]

1. Nf3 {[%emt 0:00:00]} c5 {[%emt 0:00:00]} 2. e4 {[%emt 0:00:00]} Nc6 {[%emt 0:00:00]} 3. Nc3 {[%emt 0:00:00]} d6 {[%emt 0:00:00]} 4. Bb5 {[%emt 0:00:00]} e5 {[%emt 0:00:42]} 5. d3 {[%emt 0:08:39]} Nf6 {[%emt 0:00:27]} 6. O-O {[%emt 0:07:51]} Be7 {[%emt 0:00:18]} 7. Ne2 {[%emt 0:10:04]} O-O {[%emt 0:01:02]} 8. c3 {[%emt 0:04:35]} a6 {[%emt 0:04:02]} 9. Ba4 {[%emt 0:01:01]} b5 {[%emt 0:00:47]} 10. Bc2 {[%emt 0:00:25]} Bg4 {[%emt 0:02:48]} 11. Ng3 {[%emt 0:03:45]} Rb8 {[%emt 0:27:03]} 12. h3 {[%emt 0:01:12]} Bd7 {[%emt 0:02:59]} 13. d4 {[%emt 0:02:15]} b4 {[%emt 0:01:19]} 14. Be3 {[%emt 0:06:19]} bxc3 {[%emt 0:05:36]} 15. bxc3 {[%emt 0:00:10]} Qa5 {[%emt 0:04:53]} 16. d5 {[%emt 0:00:54]} Na7 {[%emt 0:01:26]} 17. c4 {[%emt 0:00:34]} Nc8 {[%emt 0:05:49]} 18. Bd2 {[%emt 0:04:55]} Qc7 {[%emt 0:02:46]} 19. Ne1 {[%emt 0:01:09]} a5 {[%emt 0:05:53]} 20. Nd3 {[%emt 0:00:51]} Ne8 {[%emt 0:07:45]} 21. f4 {[%emt 0:03:36]} Bf6 {[%emt 0:02:06]} 22. Nh5 {[%emt 0:01:27]} exf4 {[%emt 0:00:31]} 23. Nxf6+ {[%emt 0:01:01]} Nxf6 {[%emt 0:00:04]} 24. Rxf4 {[%emt 0:00:06]} Ne7 {[%emt 0:08:56]} 25. Rxf6 {[%emt 0:02:57]} gxf6 {[%emt 0:00:12]} 26. Bc3 {[%emt 0:00:08]} f5 {[%emt 0:04:29]} 27. Bf6 {[%emt 0:00:15]} fxe4 {[%emt 0:01:37]} 28. Qd2 {[%emt 0:00:29]} 1-0

[Event "1.Frauenbundesliga 2018-19"]
[Site "Germany"]
[Date "2019.01.12"]
[Round "5"]
[White "Gromova, Julia"]
[Black "Spiel, Marianne"]
[Result "1-0"]
[ECO "D30"]
[WhiteElo "2241"]
[BlackElo "1896"]
[Annotator "NA"]
[PlyCount "43"]
[EventDate "2018.10.27"]
[EventType "team-tourn"]
[EventCountry "GER"]
[SourceTitle "playchess.com"]
[Source "ChessBase"]
[SourceQuality "1"]
[TimeControl "40/5400+30:1800+30"]

1. d4 {[%emt 0:00:00]} Nf6 {[%emt 0:00:00]} 2. c4 {[%emt 0:00:00]} e6 {[%emt 0:00:00]} 3. Nf3 {[%emt 0:00:00]} d5 {[%emt 0:00:01]} 4. Bg5 {[%emt 0:00:11]} c6 {[%emt 0:00:58]} 5. e3 {[%emt 0:00:10]} Nbd7 {[%emt 0:01:26]} 6. Nbd2 {[%emt 0:00:45]} Bd6 {[%emt 0:02:01]} 7. Bd3 {[%emt 0:00:15]} O-O {[%emt 0:00:30]} 8. O-O {[%emt 0:01:44]} e5 {[%emt 0:16:05]} 9. cxd5 {[%emt 0:06:46]} cxd5 {[%emt 0:01:20]} 10. dxe5 {[%emt 0:01:14]} Nxe5 {[%emt 0:00:29]} 11. Nxe5 {[%emt 0:01:36]} Bxe5 {[%emt 0:00:08]} 12. Nf3 {[%emt 0:01:49]} Bxb2 {[%emt 0:14:02]} 13. Bxh7+ {[%emt 0:00:40]} Kh8 {[%emt 0:00:29]} 14. Rb1 {[%emt 0:00:57]} Ba3 {[%emt 0:00:23]} 15. Qa4 {[%emt 0:16:09]} Be7 {[%emt 0:06:06]} 16. Qh4 {[%emt 0:00:37]} Nxh7 {[%emt 0:10:02]} 17. Bxe7 {[%emt 0:00:39]} Qe8 {[%emt 0:01:03]} 18. Bxf8 {[%emt 0:02:25]} Qxf8 {[%emt 0:00:21]} 19. Ng5 {[%emt 0:00:25]} Qg8 {[%emt 0:09:02]} 20. Rfd1 {[%emt 0:03:52]} b6 {[%emt 0:01:05]} 21. Rxd5 {[%emt 0:03:17]} g6 {[%emt 0:02:16]} 22. Rd8 {[%emt 0:01:39]} 1-0

[Event "1.Frauenbundesliga 2018-19"]
[Site "Germany"]
[Date "2019.01.12"]
[Round "5"]
[White "Schoene, Maria"]
[Black "Schenk, Stefanie"]
[Result "1-0"]
[ECO "B13"]
[WhiteElo "2171"]
[BlackElo "2090"]
[Annotator "NA"]
[PlyCount "91"]
[EventDate "2018.10.27"]
[EventType "team-tourn"]
[EventCountry "GER"]
[SourceTitle "playchess.com"]
[Source "ChessBase"]
[SourceQuality "1"]
[TimeControl "40/5400+30:1800+30"]

1. e4 {[%emt 0:00:00]} c6 {[%emt 0:00:00]} 2. d4 {[%emt 0:00:00]} d5 {[%emt 0:00:00]} 3. exd5 {[%emt 0:00:00]} cxd5 {[%emt 0:00:00]} 4. c4 {[%emt 0:00:20]} e6 {[%emt 0:00:05]} 5. Nf3 {[%emt 0:01:32]} Nf6 {[%emt 0:01:38]} 6. Nc3 {[%emt 0:06:33]} Be7 {[%emt 0:01:22]} 7. c5 {[%emt 0:08:09]} b6 {[%emt 0:06:49]} 8. Bb5+ {[%emt 0:02:27]} Bd7 {[%emt 0:05:08]} 9. cxb6 {[%emt 0:11:19]} axb6 {[%emt 0:09:55]} 10. O-O {[%emt 0:02:45]} O-O {[%emt 0:04:27]} 11. Bf4 {[%emt 0:11:32]} Nh5 {[%emt 0:18:39]} 12. Bxb8 {[%emt 0:11:28]} Bxb5 {[%emt 0:04:24]} 13. Nxb5 {[%emt 0:00:31]} Qxb8 {[%emt 0:02:38]} 14. Ne5 {[%emt 0:01:00]} Nf6 {[%emt 0:00:50]} 15. Nc6 {[%emt 0:06:09]} Qb7 {[%emt 0:03:30]} 16. Nxe7+ {[%emt 0:00:06]} Qxe7 {[%emt 0:00:04]} 17. Qb3 {[%emt 0:00:03]} Rfc8 {[%emt 0:03:40]} 18. Rfc1 {[%emt 0:01:15]} Qd8 {[%emt 0:01:24]} 19. f3 {[%emt 0:01:25]} Rxc1+ {[%emt 0:01:46]} 20. Rxc1 {[%emt 0:00:04]} Rc8 {[%emt 0:00:17]} 21. Rxc8 {[%emt 0:06:14]} Qxc8 {[%emt 0:00:01]} 22. Qc3 {[%emt 0:00:06]} Qd7 {[%emt 0:06:52]} 23. a4 {[%emt 0:00:52]} h6 {[%emt 0:00:19]} 24. Qc7 {[%emt 0:04:04]} Qxc7 {[%emt 0:00:27]} 25. Nxc7 {[%emt 0:00:05]} Kf8 {[%emt 0:00:48]} 26. Kf2 {[%emt 0:00:27]} Ke7 {[%emt 0:00:41]} 27. Ke3 {[%emt 0:00:27]} Kd7 {[%emt 0:03:40]} 28. Nb5 {[%emt 0:00:07]} Ng8 {[%emt 0:01:02]} 29. Kd3 {[%emt 0:04:20]} Ne7 {[%emt 0:00:10]} 30. b4 {[%emt 0:01:14]} Nc6 {[%emt 0:01:07]} 31. Kc3 {[%emt 0:00:04]} f6 {[%emt 0:03:55]} 32. f4 {[%emt 0:01:18]} g5 {[%emt 0:00:53]} 33. fxg5 {[%emt 0:00:05]} fxg5 {[%emt 0:01:46]} 34. Na3 {[%emt 0:00:49]} Kd6 {[%emt 0:01:37]} 35. Nc2 {[%emt 0:01:46]} e5 {[%emt 0:00:49]} 36. dxe5+ {[%emt 0:00:27]} Kxe5 {[%emt 0:00:26]} 37. Kd3 {[%emt 0:00:05]} h5 {[%emt 0:04:12]} 38. b5 {[%emt 0:05:47]} Na5 {[%emt 0:01:28]} 39. Nd4 {[%emt 0:00:40]} Nc4 {[%emt 0:07:09]} 40. Nf3+ {[%emt 0:01:45]} Kf6 {[%emt 0:01:50]} 41. Kd4 {[%emt 0:32:05]} g4 {[%emt 0:31:33]} 42. Ne1 {[%emt 0:01:52]} Nb2 {[%emt 0:00:00]} 43. a5 {[%emt 0:00:00]} Nc4 {[%emt 0:00:00]} 44. a6 {[%emt 0:00:00]} Nd6 {[%emt 0:00:00]} 45. Kxd5 {[%emt 0:00:00]} Nxb5 {[%emt 0:00:00]} 46. Kc6 {[%emt 0:00:00]} 1-0

[Event "1.Frauenbundesliga 2018-19"]
[Site "Germany"]
[Date "2019.01.12"]
[Round "5"]
[White "Winterholler, Christina"]
[Black "Lubbe, Melanie"]
[Result "0-1"]
[ECO "B00"]
[WhiteElo "2040"]
[BlackElo "2342"]
[Annotator "NA"]
[PlyCount "51"]
[EventDate "2018.10.27"]
[EventType "team-tourn"]
[EventCountry "GER"]
[SourceTitle "playchess.com"]
[Source "ChessBase"]
[SourceQuality "1"]
[TimeControl "40/5400+30:1800+30"]

1. e4 {[%emt 0:00:00]} d6 {[%emt 0:00:00]} 2. Nf3 {[%emt 0:07:05]} Nf6 {[%emt 0:00:41]} 3. Nc3 {[%emt 0:00:50]} c5 {[%emt 0:01:01]} 4. d4 {[%emt 0:01:12]} cxd4 {[%emt 0:00:05]} 5. Qxd4 {[%emt 0:00:13]} Nc6 {[%emt 0:04:27]} 6. Bb5 {[%emt 0:00:16]} Bd7 {[%emt 0:04:56]} 7. Bxc6 {[%emt 0:00:24]} Bxc6 {[%emt 0:00:15]} 8. Bg5 {[%emt 0:00:51]} e6 {[%emt 0:04:38]} 9. O-O-O {[%emt 0:02:27]} Be7 {[%emt 0:01:23]} 10. Rhe1 {[%emt 0:07:59]} Qa5 {[%emt 0:08:07]} 11. Kb1 {[%emt 0:03:13]} O-O {[%emt 0:03:18]} 12. Qd2 {[%emt 0:00:53]} Qa6 {[%emt 0:08:14]} 13. Nd4 {[%emt 0:00:39]} Rfd8 {[%emt 0:00:46]} 14. f3 {[%emt 0:02:37]} Rab8 {[%emt 0:11:29]} 15. g4 {[%emt 0:06:37]} b5 {[%emt 0:01:54]} 16. Rg1 {[%emt 0:06:30]} Be8 {[%emt 0:10:24]} 17. Nce2 {[%emt 0:08:32]} Rb6 {[%emt 0:11:29]} 18. Ng3 {[%emt 0:13:21]} Qa4 {[%emt 0:06:29]} 19. Nh5 {[%emt 0:13:36]} Ra6 {[%emt 0:00:09]} 20. a3 {[%emt 0:02:11]} d5 {[%emt 0:05:42]} 21. Bxf6 {[%emt 0:08:56]} Bxf6 {[%emt 0:02:08]} 22. Nxf6+ {[%emt 0:01:06]} gxf6 {[%emt 0:00:02]} 23. Qh6 {[%emt 0:01:50]} dxe4 {[%emt 0:02:48]} 24. Nf5 {[%emt 0:05:14]} Rxd1+ {[%emt 0:00:10]} 25. Rxd1 {[%emt 0:00:03]} exf5 {[%emt 0:00:04]} 26. gxf5 {[%emt 0:00:23]} 0-1